bitfinex-derivatives/quotes_BNBF0:USTF0_20250524
["timestamp","ask_amount","ask_price","bid_price","bid_amount"]
[1748126308852,0.9570777,669.63,669.44,0.47560778]
[1748126309154,0.9570777,669.62,669.44,0.47560778]
[1748126309557,0.95703032,669.61,669.44,0.47560778]
[1748126310158,0.95703032,669.6,669.44,0.47560778]
[1748126310759,0.95703032,669.59,669.44,0.47560778]
[1748126311157,1.04981211,669.58,669.44,0.47560778]
[1748126311356,0.95703032,669.59,669.44,0.47560778]
[1748126311556,0.95703032,669.57,669.44,0.47560778]
[1748126311755,0.95703032,669.56,669.44,0.47560778]
[1748126312558,0.95703032,669.55,669.44,0.47560778]
[1748126313459,0.95703032,669.54,669.31,1.154]
[1748126313759,0.95703032,669.53,669.31,1.154]
[1748126314261,0.95703032,669.52,669.31,1.154]
[1748126314761,0.95703032,669.51,669.31,1.154]
[1748126315460,1.10976165,669.8,669.31,1.154]
[1748126315661,1.54349025,669.79,669.31,1.154]
[1748126315959,1.54349025,669.78,669.31,1.154]
[1748126316160,1.54349025,669.77,669.31,1.154]
[1748126316356,2.49979566,669.76,669.31,1.154]
[1748126316660,2.49979566,669.75,669.31,1.154]
[1748126316861,1.54349025,669.74,669.31,1.154]
[1748126317061,1.54349025,669.73,669.31,1.154]
[1748126317260,2.49979566,669.72,669.31,1.154]
[1748126317462,1.54349025,669.71,669.31,1.154]
[1748126317762,2.49979566,669.7,669.31,1.154]
[1748126317956,1.54343088,669.69,669.31,1.154]
[1748126318161,1.54343088,669.68,669.31,1.154]
[1748126318363,2.49973629,669.67,669.31,1.154]
[1748126318663,1.54343088,669.66,669.31,1.154]
[1748126318957,1.54343088,669.65,669.31,1.154]
[1748126319164,1.54343088,669.64,669.31,1.154]
[1748126319356,2.49973629,669.63,669.31,1.154]
[1748126319558,1.54343088,669.62,669.31,1.154]
[1748126319761,2.49968896,669.61,669.31,1.154]
[1748126319961,0.95630541,669.61,669.31,1.154]
[1748126320562,0.95630541,669.6,669.31,1.154]
[1748126320961,0.95630541,669.59,669.31,1.154]
[1748126321556,0.95630541,669.58,669.31,1.154]
[1748126321757,0.95630541,669.57,669.31,1.154]
[1748126322261,0.95630541,669.56,669.31,1.154]
[1748126322963,0.95630541,669.55,669.31,1.154]
[1748126323363,0.95630541,669.54,669.31,1.154]
[1748126323865,0.95630541,669.53,669.31,1.154]
[1748126324166,0.95630541,669.52,669.31,1.154]
[1748126324466,1.10976165,669.77,669.31,1.154]
[1748126324664,1.54328291,669.76,669.31,1.154]
[1748126324864,1.54328291,669.75,669.31,1.154]
[1748126325065,2.49934774,669.74,669.31,1.154]
[1748126325259,1.54328291,669.73,669.31,1.154]
[1748126325460,1.54328291,669.72,669.31,1.154]
[1748126325761,2.49934774,669.71,669.31,1.154]
[1748126325962,2.49934774,669.7,669.31,1.154]
[1748126326159,1.54328291,669.69,669.31,1.154]
[1748126326362,2.49934774,669.68,669.31,1.154]
[1748126326564,1.54328291,669.67,669.31,1.154]
[1748126326863,1.54328291,669.66,669.31,1.154]
[1748126327060,1.54328291,669.65,669.31,1.154]
[1748126327260,1.54328291,669.64,669.31,1.154]
[1748126327464,1.54328291,669.63,669.31,1.154]
[1748126327661,0.95606483,669.65,669.31,1.154]
[1748126327662,1.54328291,669.62,669.31,1.154]
[1748126327860,1.54330881,669.61,669.31,1.154]
[1748126328064,0.95606483,669.6,669.31,1.154]
[1748126328466,0.95606483,669.59,669.31,1.154]
[1748126329269,0.95606483,669.58,669.31,1.154]
[1748126329562,0.95606483,669.57,669.31,1.154]
[1748126330068,0.95606483,669.56,669.31,1.154]
[1748126330667,0.95606483,669.55,669.31,1.154]
[1748126331267,0.95606483,669.54,669.31,1.154]
[1748126331465,0.95606483,669.53,669.31,1.154]
[1748126332263,0.95606483,669.52,669.31,1.154]
[1748126332767,0.95606483,669.51,669.31,1.154]
[1748126333169,1.10976165,669.76,669.31,1.154]
[1748126333371,1.54374834,669.75,669.31,1.154]
[1748126333564,0.49397029,669.74,669.31,1.154]
[1748126333770,1.54375219,669.73,669.31,1.154]
[1748126334068,2.49970806,669.72,669.31,1.154]
[1748126334269,1.54375219,669.71,669.31,1.154]
[1748126334470,1.54375219,669.7,669.31,1.154]
[1748126334768,2.49970806,669.69,669.31,1.154]
[1748126335068,2.49970806,669.68,669.31,1.154]
[1748126335262,2.49970806,669.67,669.31,1.154]
[1748126335464,1.54375219,669.66,669.31,1.154]
[1748126335664,2.49970806,669.65,669.31,1.154]
[1748126335965,1.54375219,669.64,669.31,1.154]
[1748126336168,1.54375219,669.63,669.31,1.154]
[1748126336364,1.54375219,669.62,669.31,1.154]
[1748126336564,1.54375219,669.61,669.31,1.154]
[1748126336765,1.54375219,669.6,669.31,1.154]
[1748126336966,1.0497819,669.59,669.31,1.154]
[1748126337166,0.95595587,669.58,669.31,1.154]
[1748126337472,0.95595587,669.57,669.31,1.154]
[1748126337771,0.95595587,669.56,669.31,1.154]
[1748126337972,0.95595587,669.56,669.35,0.47560778]
[1748126338568,0.95595587,669.55,669.35,0.47560778]
[1748126339067,0.95595587,669.54,669.35,0.47560778]
[1748126339572,0.95595587,669.53,669.35,0.47560778]
[1748126339972,0.95595587,669.52,669.35,0.47560778]
[1748126340473,0.95595587,669.51,669.35,0.47560778]
[1748126340773,1.10976165,669.72,669.35,0.47560778]
[1748126340973,2.50105184,669.71,669.35,0.47560778]
[1748126341273,1.54467724,669.7,669.35,0.47560778]
[1748126341474,1.54467724,669.69,669.36,1.038]
[1748126341673,1.54467724,669.68,669.36,1.038]
[1748126341868,1.54467724,669.67,669.36,1.038]
[1748126342074,1.54467724,669.66,669.36,1.038]
[1748126342269,2.50142245,669.65,669.37,0.47560778]
[1748126342469,1.54490742,669.64,669.37,0.47560778]
[1748126342670,1.54490742,669.63,669.37,0.47560778]
[1748126342873,2.50142245,669.62,669.37,0.47560778]
[1748126343172,2.50142245,669.61,669.37,0.47560778]
[1748126343374,1.54490742,669.6,669.37,0.47560778]
[1748126343571,2.50142245,669.59,669.37,0.47560778]
[1748126343773,1.54490742,669.58,669.37,0.47560778]
[1748126343975,1.05054324,669.57,669.37,0.47560778]
[1748126344170,0.95651503,669.57,669.37,0.47560778]
[1748126344374,0.95651503,669.56,669.36,1.038]
[1748126345372,0.95651503,669.55,669.36,1.038]
[1748126345875,0.95651503,669.54,669.36,1.038]
[1748126346378,0.95651503,669.53,669.36,1.038]
[1748126347081,0.95651503,669.52,669.36,1.038]
[1748126347481,0.95651503,669.51,669.36,1.038]
[1748126348077,0.95651503,669.5,669.36,1.038]
[1748126348381,0.95651503,669.49,669.36,1.038]
[1748126349183,0.95651503,669.48,669.36,1.038]
[1748126349484,0.95651503,669.47,669.36,1.038]
[1748126349884,1.10976165,669.76,669.36,1.038]
[1748126350079,1.54579082,669.75,669.36,1.038]
[1748126350280,1.54579082,669.74,669.36,1.038]
[1748126350586,2.50473991,669.73,669.36,1.51360778]
[1748126350780,1.54579082,669.72,669.36,1.51360778]
[1748126350980,1.54579082,669.71,669.36,1.51360778]
[1748126351184,1.54579082,669.7,669.36,1.51360778]
[1748126351382,1.54580466,669.69,669.36,1.51360778]
[1748126351582,1.54580466,669.68,669.36,1.51360778]
[1748126351782,1.54580466,669.67,669.36,1.51360778]
[1748126351982,1.54580466,669.66,669.36,1.51360778]
[1748126352179,1.54580466,669.65,669.36,1.51360778]
[1748126352484,2.50475375,669.64,669.36,1.51360778]
[1748126352684,1.54580466,669.63,669.36,1.51360778]
[1748126352884,2.50475375,669.62,669.36,1.51360778]
[1748126353186,1.54569673,669.61,669.36,1.038]
[1748126353385,1.54569673,669.6,669.36,1.038]
[1748126353686,2.50464582,669.59,669.36,1.038]
[1748126353879,1.54569673,669.58,669.36,1.038]
[1748126354083,2.01003937,669.57,669.36,1.038]
[1748126354280,0.95894909,669.57,669.36,1.038]
[1748126354585,0.95894909,669.56,669.36,1.038]
[1748126354884,0.95894909,669.55,669.36,1.038]
[1748126355781,0.95894909,669.54,669.36,1.038]
[1748126356386,0.95894909,669.53,669.36,1.038]
[1748126357186,0.95894909,669.52,669.36,1.038]
[1748126357685,0.95894909,669.51,669.36,1.038]
[1748126357986,0.95894909,669.5,669.36,1.038]
[1748126358487,0.95894909,669.49,669.36,1.038]
[1748126358982,0.95894909,669.48,669.36,1.038]
[1748126359885,0.95894909,669.47,669.36,1.038]
[1748126360290,0.95894909,669.46,669.36,1.038]
[1748126360787,1.10976165,669.74,669.36,1.038]
[1748126361093,1.54600291,669.73,669.36,1.038]
[1748126361293,1.54600291,669.72,669.36,1.038]
[1748126361495,2.50482869,669.71,669.36,1.038]
[1748126361689,2.50482869,669.7,669.36,1.038]
[1748126361891,1.54600291,669.69,669.36,1.038]
[1748126362091,1.54600291,669.68,669.36,1.038]
[1748126362294,2.50482869,669.67,669.36,1.038]
[1748126362589,1.54600291,669.66,669.36,1.038]
[1748126362788,2.50482869,669.65,669.36,1.038]
[1748126362989,2.50482869,669.64,669.36,1.038]
[1748126363190,1.54600291,669.63,669.36,1.038]
[1748126363389,1.54600291,669.62,669.36,1.038]
[1748126363598,1.54600291,669.61,669.36,1.038]
[1748126363895,1.54600291,669.6,669.36,1.038]
[1748126364095,1.54600291,669.59,669.36,1.038]
[1748126364295,1.54600291,669.58,669.36,1.038]
[1748126364595,1.54600291,669.57,669.36,1.038]
[1748126364795,2.50482869,669.56,669.36,1.038]
[1748126364996,1.05144588,669.55,669.36,1.038]
[1748126365197,0.95882578,669.54,669.36,1.038]
[1748126365698,0.95882578,669.53,669.36,1.038]
[1748126366193,0.95882578,669.52,669.36,1.038]
[1748126366498,0.95882578,669.51,669.36,1.038]
[1748126367201,0.95882578,669.5,669.36,1.038]
[1748126367500,0.95882578,669.49,669.36,1.038]
[1748126367901,0.95882578,669.48,669.36,1.038]
[1748126368296,0.95882578,669.47,669.36,1.038]
[1748126369100,0.95882578,669.46,669.36,1.038]
[1748126369306,1.10976165,669.69,669.37,0.47560778]
[1748126369505,1.54648831,669.68,669.37,0.47560778]
[1748126369704,1.54648831,669.67,669.37,0.47560778]
[1748126369905,1.54648719,669.66,669.37,0.47560778]
[1748126370105,1.54648719,669.65,669.37,0.47560778]
[1748126370305,1.54648719,669.64,669.37,0.47560778]
[1748126370605,1.54648719,669.63,669.37,0.47560778]
[1748126370808,1.54648719,669.62,669.37,0.47560778]
[1748126371001,1.54648719,669.61,669.37,0.47560778]
[1748126371206,1.54648719,669.61,669.29,0.67816837]
[1748126371207,2.50653357,669.6,669.43,0.47560778]
[1748126371400,1.54648719,669.59,669.43,0.47560778]
[1748126371600,2.50653357,669.58,669.43,0.47560778]
[1748126371805,2.50658182,669.57,669.43,0.47560778]
[1748126372005,1.54653544,669.56,669.43,0.47560778]
[1748126372301,2.50658182,669.55,669.43,0.47560778]
[1748126372605,1.05153213,669.54,669.43,0.47560778]
[1748126372805,0.96004638,669.54,669.43,0.47560778]
[1748126373008,0.96004638,669.53,669.43,0.47560778]
[1748126373207,0.96004638,669.53,669.42,1.47560778]
[1748126373708,0.96004638,669.52,669.42,1.47560778]
[1748126374309,0.96004638,669.51,669.42,1.47560778]
[1748126374609,0.96004638,669.5,669.42,1.47560778]
[1748126375107,0.96004638,669.49,669.42,1.47560778]
[1748126375806,1.10976165,669.67,669.42,1.47560778]
[1748126376106,0.96057356,669.66,669.42,1.47560778]
[1748126376310,0.96057356,669.65,669.42,1.47560778]
[1748126376709,0.96057356,669.64,669.42,1.47560778]
[1748126377304,1.10976165,670.03,669.42,1.47560778]
[1748126377512,1.54442522,670.02,669.42,1.0]
[1748126377710,1.54442522,670.01,669.42,1.0]
[1748126377910,1.54442522,670.0,669.42,1.0]
[1748126378110,2.5037113,669.99,669.42,1.0]
[1748126378409,1.54442522,669.98,669.42,1.0]
[1748126378607,1.54442522,669.97,669.42,1.0]
[1748126378808,1.54442522,669.96,669.42,1.0]
[1748126379111,2.5037113,669.95,669.42,1.0]
[1748126379314,2.50310003,669.94,669.42,1.0]
[1748126379611,1.54381395,669.93,669.42,1.0]
[1748126379806,1.54381395,669.92,669.42,1.0]
[1748126380009,2.50310003,669.91,669.42,1.0]
[1748126380210,1.54381395,669.9,669.42,1.0]
[1748126380410,2.50310003,669.89,669.42,1.0]
[1748126380608,1.54381395,669.88,669.42,1.0]
[1748126380811,1.54381395,669.87,669.42,1.0]
[1748126381112,2.50291344,669.86,669.42,1.0]
[1748126381313,1.54362736,669.85,669.42,1.0]
[1748126381512,1.54362736,669.84,669.42,1.0]
[1748126381707,2.50291344,669.83,669.42,1.0]
[1748126381908,1.54362736,669.82,669.42,1.0]
[1748126382107,2.50291344,669.81,669.42,1.0]
[1748126382307,1.54362736,669.8,669.42,1.0]
[1748126382510,0.49451772,669.79,669.42,1.0]
[1748126382712,0.49451772,669.78,669.42,1.0]
[1748126382906,1.50880373,669.77,669.42,1.0]
[1748126383111,0.54951765,669.76,669.42,1.0]
[1748126383412,0.95928608,669.75,669.42,1.0]
[1748126383709,0.95928608,669.74,669.42,1.0]
[1748126384208,0.95928608,669.73,669.42,1.0]
[1748126384607,0.95928608,669.72,669.42,1.0]
[1748126385012,0.95928608,669.71,669.42,1.0]
[1748126385413,1.10976165,670.09,669.42,1.0]
[1748126385613,1.597592,670.08,669.42,1.0]
[1748126385812,2.55548238,670.07,669.42,1.0]
[1748126386013,2.55548238,670.06,669.42,1.0]
[1748126386214,1.597592,670.05,669.42,1.0]
[1748126386415,2.55548238,670.04,669.42,1.0]
[1748126386714,2.55530471,670.03,669.42,1.0]
[1748126386916,1.59741433,670.02,669.42,1.0]
[1748126387116,1.59741433,670.01,669.42,1.0]
[1748126387409,2.55530471,670.0,669.42,1.0]
[1748126387609,1.59741433,669.99,669.42,1.0]
[1748126387810,2.55530471,669.98,669.42,1.0]
[1748126388010,1.59741433,669.97,669.42,1.0]
[1748126388210,1.59741433,669.96,669.42,1.0]
[1748126388416,2.55530471,669.95,669.42,1.0]
[1748126388616,1.59711788,669.94,669.42,1.0]
[1748126388818,1.59711788,669.93,669.42,1.0]
[1748126389116,1.59711788,669.92,669.42,1.0]
[1748126389319,1.59711788,669.91,669.42,1.0]
[1748126389514,1.59711788,669.9,669.42,1.0]
[1748126389710,1.59711788,669.89,669.42,1.0]
[1748126390015,2.55500826,669.88,669.42,1.0]
[1748126390215,0.54923136,669.87,669.42,1.0]
[1748126390412,1.50688821,669.86,669.42,1.0]
[1748126390616,0.54899783,669.85,669.42,1.0]
[1748126390917,1.50688821,669.84,669.42,1.0]
[1748126391115,0.95789038,669.84,669.42,1.0]
[1748126391913,0.95789038,669.83,669.42,1.0]
[1748126392616,0.95789038,669.82,669.42,1.0]
[1748126392816,0.95789038,669.81,669.42,1.0]
[1748126393318,0.95789038,669.8,669.42,1.0]
[1748126393917,0.95789038,669.79,669.42,1.0]
[1748126394317,1.10976165,670.09,669.42,1.0]
[1748126394517,1.59594559,670.08,669.42,1.0]
[1748126394718,2.55309993,670.07,669.42,1.0]
[1748126394915,2.55309993,670.06,669.42,1.0]
[1748126395117,1.59594559,670.05,669.42,1.0]
[1748126395317,2.55309993,670.04,669.42,1.0]
[1748126395512,1.59594559,670.03,669.42,1.0]
[1748126395713,2.55309993,670.02,669.42,1.0]
[1748126395918,2.55309993,670.01,669.42,1.0]
[1748126396218,2.55309993,670.0,669.42,1.0]
[1748126396418,2.55309993,669.99,669.42,1.0]
[1748126396617,2.55309993,669.98,669.42,1.0]
[1748126396815,1.59594559,669.97,669.42,1.0]
[1748126397020,2.55309993,669.96,669.42,1.0]
[1748126397217,2.55309993,669.95,669.42,1.0]
[1748126397520,2.55274063,669.94,669.42,1.0]
[1748126397719,2.55274063,669.93,669.42,1.0]
[1748126398014,2.55274063,669.92,669.42,1.0]
[1748126398317,2.55274063,669.91,669.42,1.0]
[1748126398619,1.50577893,669.9,669.42,1.0]
[1748126398821,0.54858708,669.89,669.42,1.0]
[1748126399020,1.50574142,669.88,669.42,1.0]
[1748126399315,1.10976165,670.11,669.42,1.0]
[1748126399316,1.50574142,669.87,669.42,1.0]
[1748126399515,0.54858708,669.86,669.42,1.0]
[1748126399717,0.95715434,669.85,669.42,1.0]
[1748126400119,0.95715434,669.84,669.42,1.0]
[1748126400418,0.95715434,669.83,669.42,1.0]
[1748126400819,0.95715434,669.82,669.42,1.0]
[1748126401221,0.95715434,669.81,669.42,1.0]
[1748126401523,1.10976165,670.11,669.42,1.0]
[1748126401722,1.59555787,670.1,669.42,1.0]
[1748126401924,1.59555787,670.09,669.42,1.0]
[1748126402123,2.55259874,670.08,669.42,1.0]
[1748126402317,1.59555787,670.07,669.42,1.0]
[1748126402517,2.55259874,670.06,669.42,1.0]
[1748126402719,2.55259874,670.05,669.42,1.0]
[1748126402921,1.59555787,670.04,669.42,1.0]
[1748126403119,1.59555787,670.03,669.42,1.0]
[1748126403321,1.59540784,670.02,669.42,1.0]
[1748126403521,2.55244871,670.01,669.42,1.0]
[1748126403724,2.55244871,670.0,669.42,1.0]
[1748126403923,1.59540784,669.99,669.42,1.0]
[1748126404120,2.55244871,669.98,669.42,1.0]
[1748126404325,1.59540784,669.97,669.42,1.0]
[1748126404524,1.59540784,669.96,669.42,1.0]
[1748126404726,1.59540784,669.95,669.42,1.0]
[1748126404926,1.59540784,669.94,669.42,1.0]
[1748126405122,1.59537818,669.93,669.42,1.0]
[1748126405322,1.59537818,669.92,669.42,1.0]
[1748126405528,1.59537818,669.91,669.42,1.0]
[1748126405727,0.54849826,669.9,669.42,1.0]
[1748126405925,1.50553913,669.89,669.42,1.0]
[1748126406132,0.54849826,669.88,669.42,1.0]
[1748126406325,0.54849826,669.87,669.42,1.0]
[1748126406527,0.95704087,669.86,669.42,1.0]
[1748126407030,0.95704087,669.85,669.42,1.0]
[1748126407432,0.95704087,669.84,669.42,1.0]
[1748126407634,0.95704087,669.83,669.42,1.0]
[1748126408134,1.10976165,670.07,669.42,1.0]
[1748126408135,0.95704087,669.82,669.42,1.0]
[1748126408335,1.10976165,670.07,669.42,1.0]
[1748126408535,1.59479819,670.06,669.42,1.0]
[1748126408737,2.5522036,670.05,669.42,1.0]
[1748126408943,1.59479819,670.04,669.42,1.0]
[1748126409141,2.5522036,670.03,669.42,1.0]
[1748126409435,2.5522036,670.02,669.42,1.0]
[1748126409641,1.59479819,670.01,669.42,1.0]
[1748126409842,1.59479819,670.0,669.42,1.0]
[1748126410042,2.5522036,669.99,669.42,1.0]
[1748126410243,2.5522036,669.98,669.42,1.0]
[1748126410444,1.59479819,669.97,669.42,1.0]
[1748126410639,1.5948013,669.96,669.42,1.0]
[1748126410842,2.55220671,669.95,669.42,1.0]
[1748126411038,1.5948013,669.94,669.42,1.0]
[1748126411343,2.55220671,669.93,669.42,1.0]
[1748126411543,1.5948013,669.92,669.42,1.0]
[1748126411744,0.54844334,669.91,669.42,1.0]
[1748126411942,1.50584875,669.9,669.42,1.0]
[1748126412143,0.54844334,669.89,669.42,1.0]
[1748126412441,0.54844334,669.88,669.42,1.0]
[1748126412642,1.50584875,669.87,669.42,1.0]
[1748126412840,0.95740541,669.87,669.42,1.0]
[1748126413041,0.95740541,669.86,669.42,1.0]
[1748126413244,0.95740541,669.86,669.49,0.47560778]
[1748126413742,0.95740541,669.85,669.49,0.47560778]
[1748126414243,0.95740541,669.84,669.49,0.47560778]
[1748126414544,0.95740541,669.83,669.49,0.47560778]
[1748126414845,1.10976165,670.05,669.49,0.47560778]
[1748126415048,1.59493786,670.04,669.49,0.47560778]
[1748126415247,2.55267118,670.03,669.49,0.47560778]
[1748126415440,2.55267118,670.03,669.42,1.0]
[1748126415441,1.59493786,670.02,669.68,0.47560778]
[1748126415639,1.59493786,670.01,669.68,0.47560778]
[1748126415843,1.59493786,670.0,669.68,0.47560778]
[1748126416041,1.59493786,669.99,669.68,0.47560778]
[1748126416244,1.59501362,669.98,669.68,0.47560778]
[1748126416441,2.55274694,669.97,669.68,0.47560778]
[1748126416748,2.55274694,669.96,669.68,0.47560778]
[1748126416945,1.59501362,669.95,669.68,0.47560778]
[1748126417146,2.55274694,669.94,669.68,0.47560778]
[1748126417347,1.59501362,669.93,669.69,0.47560778]
[1748126417643,1.59501362,669.92,669.69,0.47560778]
[1748126417847,2.55274694,669.91,669.69,0.47560778]
[1748126418047,0.54848826,669.9,669.69,0.47560778]
[1748126418244,0.54848826,669.89,669.69,0.47560778]
[1748126418449,0.54848826,669.88,669.69,0.47560778]
[1748126418646,0.54848826,669.87,669.69,0.47560778]
[1748126418848,0.54848826,669.86,669.69,0.47560778]
[1748126419047,0.95773332,669.89,669.69,0.47560778]
[1748126419346,0.95773332,669.85,669.69,0.47560778]
[1748126419748,1.10976165,670.02,669.69,0.47560778]
[1748126419749,0.95773332,669.84,669.69,0.47560778]
[1748126420245,0.95773332,669.83,669.69,0.47560778]
[1748126420749,0.95773332,669.82,669.69,0.47560778]
[1748126421545,0.95773332,669.82,669.71,0.47560778]
[1748126421753,1.10976165,670.03,669.71,0.47560778]
[1748126421950,1.59602811,670.02,669.71,0.47560778]
[1748126422150,1.59602811,670.01,669.71,0.47560778]
[1748126422446,1.59602811,670.0,669.71,0.47560778]
[1748126422650,1.59602811,669.99,669.71,0.47560778]
[1748126422850,2.55649083,669.98,669.71,0.47560778]
[1748126423050,1.59602811,669.97,669.71,0.47560778]
[1748126423253,1.59602811,669.96,669.71,0.47560778]
[1748126423552,2.55649083,669.95,669.71,0.47560778]
[1748126423749,1.59602811,669.94,669.71,0.47560778]
[1748126423947,0.54879895,669.93,669.71,0.47560778]
[1748126424149,1.50926167,669.92,669.71,0.47560778]
[1748126424445,0.54879895,669.91,669.62,0.47560778]
[1748126424648,1.50926167,669.9,669.62,0.47560778]
[1748126424848,0.54879895,669.89,669.62,0.47560778]
[1748126425049,0.96046272,669.9,669.62,0.47560778]
[1748126425246,0.54882288,669.89,669.62,0.47560778]
[1748126425449,0.96046272,669.88,669.62,0.47560778]
[1748126425854,0.96046272,669.87,669.62,0.47560778]
[1748126426253,0.54886667,669.86,669.62,0.47560778]
[1748126426447,0.54884549,669.85,669.62,0.47560778]
[1748126426651,1.50930821,669.84,669.59,0.47560778]
[1748126426851,0.54884549,669.83,669.59,0.47560778]
[1748126427051,0.54884549,669.82,669.59,0.47560778]
[1748126427353,2.55656532,669.81,669.59,0.47560778]
[1748126427554,1.5961026,669.8,669.59,0.47560778]
[1748126427847,1.5961026,669.79,669.59,0.47560778]
[1748126428053,1.5961026,669.78,669.59,0.47560778]
[1748126428247,2.55656532,669.77,669.59,0.47560778]
[1748126428451,1.5961026,669.76,669.59,0.47560778]
[1748126428648,1.5961026,669.75,669.59,0.47560778]
[1748126428852,2.55656532,669.74,669.28,0.67816837]
[1748126429053,1.5961026,669.73,669.28,0.67816837]
[1748126429254,2.55656532,669.72,669.28,0.67816837]
[1748126429549,1.5961026,669.71,669.17,0.47560778]
[1748126429755,1.5961026,669.7,669.17,0.47560778]
[1748126429956,1.5961026,669.69,669.17,0.47560778]
[1748126430157,2.55656532,669.68,669.17,0.47560778]
[1748126430350,1.5961026,669.67,669.17,0.47560778]
[1748126430552,1.5961026,669.66,669.18,1.002]
[1748126430849,1.595723,669.65,669.18,1.002]
[1748126431054,2.55618572,669.64,669.18,1.002]
[1748126431249,1.595723,669.63,669.3,0.47560778]
[1748126431454,0.96046272,669.64,669.3,0.47560778]
[1748126431455,1.595723,669.62,669.3,0.47560778]
[1748126431653,2.55618572,669.61,669.3,0.47560778]
[1748126431854,1.595723,669.6,669.3,0.47560778]
[1748126432055,1.595723,669.59,669.3,0.47560778]
[1748126432254,1.595723,669.58,669.3,0.47560778]
[1748126432556,1.595723,669.57,669.18,1.002]
[1748126432756,0.548241,669.56,669.18,1.002]
[1748126432952,1.50870372,669.55,669.18,1.002]
[1748126433150,0.548241,669.54,669.18,1.002]
[1748126433356,0.548241,669.53,669.18,1.002]
[1748126433555,1.50858062,669.52,669.18,1.002]
[1748126433748,0.5481179,669.51,669.18,1.002]
[1748126433953,1.50858062,669.5,669.18,1.002]
[1748126434153,0.5481179,669.49,669.18,1.002]
[1748126434351,0.5481179,669.48,669.18,1.002]
[1748126434552,1.50858062,669.47,669.18,1.002]
[1748126434754,0.96046272,669.47,669.18,1.002]
[1748126434958,1.50845476,669.46,669.18,1.002]
[1748126435152,0.96046272,669.46,669.18,1.002]
[1748126435355,0.96046272,669.45,669.18,1.002]
[1748126436158,0.96046272,669.44,669.18,1.002]
[1748126436554,0.96046272,669.43,669.18,1.002]
[1748126436958,1.10976165,669.67,669.18,1.002]
[1748126437264,1.59475282,669.66,669.18,1.002]
[1748126437458,2.54188177,669.65,669.18,1.002]
[1748126437653,1.59475282,669.64,669.18,1.002]
[1748126437852,1.59475282,669.63,669.18,1.002]
[1748126438052,2.54165772,669.62,669.18,1.002]
[1748126438255,1.59452877,669.61,669.18,1.002]
[1748126438457,1.59452877,669.6,669.18,1.002]
[1748126438657,2.54165772,669.59,669.18,1.002]
[1748126438857,1.59452877,669.58,669.18,1.002]
[1748126439060,1.59452877,669.57,669.18,1.002]
[1748126439356,2.54165772,669.56,669.18,1.002]
[1748126439563,1.59452877,669.55,669.18,1.002]
[1748126439761,1.59452877,669.54,669.18,1.002]
[1748126439961,2.54039228,669.53,669.18,1.002]
[1748126440162,0.5479067,669.52,669.18,1.002]
[1748126440358,0.5479067,669.51,669.18,1.002]
[1748126440559,0.5479067,669.5,669.18,1.002]
[1748126440764,0.5479067,669.49,669.18,1.002]
[1748126441063,1.49503565,669.48,669.18,1.002]
[1748126441364,0.94712895,669.48,669.18,1.002]
[1748126441663,0.94712895,669.47,669.18,1.002]
[1748126442066,0.94712895,669.46,669.18,1.002]
[1748126442761,0.94712895,669.45,669.18,1.002]
[1748126443163,1.10976165,669.71,669.18,1.002]
[1748126443366,1.59082592,669.7,669.18,1.002]
[1748126443561,1.59082592,669.69,669.18,1.002]
[1748126443766,1.59082592,669.68,669.18,1.002]
[1748126444063,2.53425535,669.67,669.18,1.002]
[1748126444264,1.59082592,669.66,669.18,1.002]
[1748126444466,2.53425535,669.65,669.18,1.002]
[1748126444666,1.59082592,669.64,669.18,1.002]
[1748126444862,1.59082592,669.63,669.18,1.002]
[1748126445066,1.59082592,669.62,669.18,1.002]
[1748126445262,1.04419972,669.61,669.18,1.002]
[1748126445568,2.53368161,669.6,669.18,1.002]
[1748126445862,1.59025218,669.59,669.18,1.002]
[1748126446066,2.53368161,669.58,669.18,1.002]